[Event "Titled Tuesday Blitz May 03 Late 2022"]
[White "Gabrielian, Artur"]
[Black "Zlatin, Alexander"]
[WhiteFideId "4131002"]
[BlackFideId "2810549"]
[WhiteElo "2440"]
[BlackElo "2228"]
[Result "1-0"]
[Round "03"]
[TimeControl "180+1"]
[Date "2022.05.03"]
[WhiteClock "0:00:47"]
[BlackClock "0:00:02"]

1. e4 {[%clk 0:03:00]}  e5 {[%clk 0:03:00]} 2. Nf3 {[%clk 0:03:00]}  Nc6 {[%clk 0:03:00]} 3. Bc4 {[%clk 0:03:00]}  Bc5 {[%clk 0:03:01]} 4. d3 {[%clk 0:03:00]}  Nf6 {[%clk 0:03:00]} 5. O-O {[%clk 0:03:00]}  d6 {[%clk 0:03:01]} 6. c3 {[%clk 0:03:00]}  a5 {[%clk 0:02:59]} 7. d4 {[%clk 0:02:57]}  Ba7 {[%clk 0:02:52]} 8. dxe5 {[%clk 0:02:56]}  dxe5 {[%clk 0:02:52]} 9. Qxd8+ {[%clk 0:02:54]}  Nxd8 {[%clk 0:02:53]} 10. Nxe5 {[%clk 0:02:51]}  Nxe4 {[%clk 0:02:52]} 11. Nd2 {[%clk 0:02:48]}  Nxd2 {[%clk 0:02:47]} 12. Bxd2 {[%clk 0:02:48]}  O-O {[%clk 0:02:47]} 13. Rfe1 {[%clk 0:02:28]}  Be6 {[%clk 0:02:42]} 14. Bf1 {[%clk 0:02:15]}  f6 {[%clk 0:02:29]} 15. Nc4 {[%clk 0:02:14]}  Bc5 {[%clk 0:02:21]} 16. Bf4 {[%clk 0:02:13]}  Rf7 {[%clk 0:02:06]} 17. Rad1 {[%clk 0:02:11]}  b5 {[%clk 0:01:53]} 18. Nxa5 {[%clk 0:02:07]}  Bxa2 {[%clk 0:01:53]} 19. b4 {[%clk 0:01:47]}  Bb6 {[%clk 0:01:46]} 20. Bxb5 {[%clk 0:01:40]}  Ne6 {[%clk 0:01:39]} 21. Bc6 {[%clk 0:01:38]}  Rb8 {[%clk 0:01:25]} 22. Be3 {[%clk 0:01:35]}  Nd8 {[%clk 0:00:55]} 23. Bf3 {[%clk 0:01:30]}  Re7 {[%clk 0:00:30]} 24. Bxb6 {[%clk 0:01:21]}  Rxe1+ {[%clk 0:00:31]} 25. Rxe1 {[%clk 0:01:21]}  cxb6 {[%clk 0:00:31]} 26. Nc6 {[%clk 0:01:14]}  Nxc6 {[%clk 0:00:31]} 27. Bxc6 {[%clk 0:01:15]}  Kf7 {[%clk 0:00:24]} 28. b5 {[%clk 0:01:13]}  Rd8 {[%clk 0:00:23]} 29. g3 {[%clk 0:01:12]}  Rd3 {[%clk 0:00:22]} 30. Ra1 {[%clk 0:01:08]}  Bd5 {[%clk 0:00:13]} 31. Bxd5+ {[%clk 0:00:53]}  Rxd5 {[%clk 0:00:13]} 32. Ra7+ {[%clk 0:00:52]}  Kg6 {[%clk 0:00:13]} 33. c4 {[%clk 0:00:51]}  Rd4 {[%clk 0:00:11]} 34. Rc7 {[%clk 0:00:51]}  Rd1+ {[%clk 0:00:08]} 35. Kg2 {[%clk 0:00:51]}  Rc1 {[%clk 0:00:08]} 36. Rc6 {[%clk 0:00:50]}  Rc3 {[%clk 0:00:07]} 37. Kf1 {[%clk 0:00:48]}  h5 {[%clk 0:00:07]} 38. Ke2 {[%clk 0:00:48]}  Kg5 {[%clk 0:00:07]} 39. f3 {[%clk 0:00:47]}  h4 {[%clk 0:00:04]} 40. Kd2 {[%clk 0:00:47]}  Rxf3 {[%clk 0:00:03]} 41. gxh4+ {[%clk 0:00:48]}  Kxh4 {[%clk 0:00:03]} 42. Rxb6 {[%clk 0:00:48]}  Rf2+ {[%clk 0:00:04]} 43. Kd3 {[%clk 0:00:49]}  Rxh2 {[%clk 0:00:05]} 44. Re6 {[%clk 0:00:47]}  Rh1 {[%clk 0:00:04]} 45. b6 {[%clk 0:00:47]}  Rd1+ {[%clk 0:00:01]} 46. Kc2 {[%clk 0:00:47]}  Rd8 {[%clk 0:00:01]} 47. c5 {[%clk 0:00:47]}  Rc8 {[%clk 0:00:02]} 48. c6 {[%clk 0:00:47]} 1-0


[Site "https://www.chess.com"]

[Event "Titled Tuesday Blitz May 03 Late 2022"]
[White "Gurevich, Dmitry"]
[Black "Ansh M Shah"]
[WhiteFideId "2000407"]
[BlackFideId "25033379"]
[WhiteElo "2506"]
[BlackElo "1819"]
[Result "1-0"]
[Round "03"]
[TimeControl "180+1"]
[Date "2022.05.03"]
[WhiteClock "0:02:41"]
[BlackClock "0:02:22"]

1. d4 {[%clk 0:03:00]}  Nf6 {[%clk 0:02:52]} 2. c4 {[%clk 0:03:00]}  e6 {[%clk 0:02:52]} 3. g3 {[%clk 0:03:00]}  c5 {[%clk 0:02:52]} 4. d5 {[%clk 0:02:56]}  exd5 {[%clk 0:02:52]} 5. cxd5 {[%clk 0:02:56]}  d6 {[%clk 0:02:53]} 6. Bg2 {[%clk 0:02:55]}  g6 {[%clk 0:02:54]} 7. Nf3 {[%clk 0:02:55]}  Bg7 {[%clk 0:02:55]} 8. O-O {[%clk 0:02:54]}  O-O {[%clk 0:02:56]} 9. Nc3 {[%clk 0:02:53]}  b6 {[%clk 0:02:55]} 10. Bf4 {[%clk 0:02:51]}  Na6 {[%clk 0:02:53]} 11. Re1 {[%clk 0:02:49]}  Nc7 {[%clk 0:02:48]} 12. e4 {[%clk 0:02:43]}  b5 {[%clk 0:02:45]} 13. e5 {[%clk 0:02:42]}  dxe5 {[%clk 0:02:43]} 14. Nxe5 {[%clk 0:02:42]}  Rb8 {[%clk 0:02:22]} 15. Nc6 {[%clk 0:02:41]} 1-0


[Site "https://www.chess.com"]

[Event "Titled Tuesday Blitz May 03 Late 2022"]
[White "Hakobyan, Aram"]
[Black "Mikhailov, Viacheslav"]
[WhiteFideId "13306677"]
[BlackFideId "4187369"]
[WhiteElo "2557"]
[BlackElo "2381"]
[Result "1-0"]
[Round "03"]
[TimeControl "180+1"]
[Date "2022.05.03"]
[WhiteClock "0:00:13"]
[BlackClock "0:00:02"]

1. e4 {[%clk 0:03:00]}  d6 {[%clk 0:02:59]} 2. d4 {[%clk 0:03:00]}  Nf6 {[%clk 0:02:59]} 3. Nc3 {[%clk 0:03:01]}  g6 {[%clk 0:02:59]} 4. Nf3 {[%clk 0:02:59]}  Bg7 {[%clk 0:02:59]} 5. Be3 {[%clk 0:02:59]}  O-O {[%clk 0:03:00]} 6. Qd2 {[%clk 0:02:59]}  Bg4 {[%clk 0:02:59]} 7. Ng5 {[%clk 0:02:54]}  c6 {[%clk 0:02:50]} 8. h3 {[%clk 0:02:53]}  Bd7 {[%clk 0:02:48]} 9. Nf3 {[%clk 0:02:40]}  b5 {[%clk 0:02:47]} 10. e5 {[%clk 0:02:37]}  b4 {[%clk 0:02:46]} 11. Ne2 {[%clk 0:02:26]}  Ne4 {[%clk 0:02:31]} 12. Qd3 {[%clk 0:02:11]}  Bf5 {[%clk 0:02:27]} 13. g4 {[%clk 0:02:10]}  Nxf2 {[%clk 0:02:12]} 14. Qd2 {[%clk 0:01:59]}  Ne4 {[%clk 0:01:45]} 15. Qxb4 {[%clk 0:01:56]}  Be6 {[%clk 0:01:36]} 16. Nf4 {[%clk 0:01:52]}  a5 {[%clk 0:01:33]} 17. Qa3 {[%clk 0:01:47]}  Nd7 {[%clk 0:01:21]} 18. Bg2 {[%clk 0:01:29]}  Bc4 {[%clk 0:01:09]} 19. O-O-O {[%clk 0:01:21]}  Qb6 {[%clk 0:00:52]} 20. Rhe1 {[%clk 0:01:18]}  Rfb8 {[%clk 0:00:43]} 21. Nd2 {[%clk 0:00:44]}  Nxd2 {[%clk 0:00:42]} 22. Rxd2 {[%clk 0:00:44]}  dxe5 {[%clk 0:00:33]} 23. dxe5 {[%clk 0:00:45]}  Qb7 {[%clk 0:00:34]} 24. Bd4 {[%clk 0:00:32]}  Bh6 {[%clk 0:00:27]} 25. Qg3 {[%clk 0:00:26]}  Bxa2 {[%clk 0:00:09]} 26. e6 {[%clk 0:00:23]}  fxe6 {[%clk 0:00:06]} 27. g5 {[%clk 0:00:21]}  Bg7 {[%clk 0:00:06]} 28. Bxg7 {[%clk 0:00:21]}  Kxg7 {[%clk 0:00:07]} 29. Qc3+ {[%clk 0:00:20]}  e5 {[%clk 0:00:07]} 30. Nd3 {[%clk 0:00:15]}  Kg8 {[%clk 0:00:05]} 31. Bxc6 {[%clk 0:00:15]}  Qc7 {[%clk 0:00:02]} 32. Bd5+ {[%clk 0:00:15]}  Bxd5 {[%clk 0:00:02]} 33. Qxc7 {[%clk 0:00:15]}  Nb6 {[%clk 0:00:02]} 34. Qxe5 {[%clk 0:00:14]}  Bf7 {[%clk 0:00:01]} 35. Rf2 {[%clk 0:00:11]}  Rf8 {[%clk 0:00:01]} 36. Qe2 {[%clk 0:00:10]}  Nc4 {[%clk 0:00:02]} 37. Ne5 {[%clk 0:00:10]}  Nxe5 {[%clk 0:00:02]} 38. Qxe5 {[%clk 0:00:11]}  a4 {[%clk 0:00:03]} 39. Ref1 {[%clk 0:00:11]}  a3 {[%clk 0:00:03]} 40. bxa3 {[%clk 0:00:12]}  Rxa3 {[%clk 0:00:03]} 41. Rxf7 {[%clk 0:00:13]}  Ra1+ {[%clk 0:00:02]} 42. Qxa1 {[%clk 0:00:13]} 1-0


[Site "https://www.chess.com"]

[Event "Titled Tuesday Blitz May 03 Late 2022"]
[White "Hoffmann, Asa"]
[Black "Gascon Del Nogal, Jose Rafael"]
[WhiteFideId "2001470"]
[BlackFideId "3902463"]
[WhiteElo "2117"]
[BlackElo "2473"]
[Result "0-1"]
[Round "03"]
[TimeControl "180+1"]
[Date "2022.05.03"]
[WhiteClock "0:00:11"]
[BlackClock "0:00:09"]

1. d4 {[%clk 0:02:50]}  Nf6 {[%clk 0:02:56]} 2. Bg5 {[%clk 0:02:50]}  Ne4 {[%clk 0:02:55]} 3. Bf4 {[%clk 0:02:49]}  d5 {[%clk 0:02:51]} 4. f3 {[%clk 0:02:49]}  Nf6 {[%clk 0:02:50]} 5. e4 {[%clk 0:02:49]}  e6 {[%clk 0:02:46]} 6. e5 {[%clk 0:02:48]}  Nfd7 {[%clk 0:02:46]} 7. Be3 {[%clk 0:02:48]}  c5 {[%clk 0:02:46]} 8. c3 {[%clk 0:02:48]}  Nc6 {[%clk 0:02:41]} 9. f4 {[%clk 0:02:48]}  cxd4 {[%clk 0:02:37]} 10. cxd4 {[%clk 0:02:47]}  Nb6 {[%clk 0:02:38]} 11. Nf3 {[%clk 0:02:46]}  Bd7 {[%clk 0:02:37]} 12. Nc3 {[%clk 0:02:46]}  Rc8 {[%clk 0:02:37]} 13. Be2 {[%clk 0:02:40]}  Be7 {[%clk 0:02:33]} 14. O-O {[%clk 0:02:39]}  O-O {[%clk 0:02:32]} 15. Rc1 {[%clk 0:02:38]}  Na5 {[%clk 0:02:19]} 16. b3 {[%clk 0:02:35]}  Nc6 {[%clk 0:02:14]} 17. Nb5 {[%clk 0:02:23]}  a6 {[%clk 0:02:04]} 18. Nd6 {[%clk 0:02:22]}  Bxd6 {[%clk 0:02:04]} 19. exd6 {[%clk 0:02:22]}  Na7 {[%clk 0:01:48]} 20. Bd3 {[%clk 0:02:16]}  Rxc1 {[%clk 0:01:38]} 21. Bxc1 {[%clk 0:02:11]}  h6 {[%clk 0:01:33]} 22. Bb1 {[%clk 0:02:00]}  Nb5 {[%clk 0:01:27]} 23. Ne5 {[%clk 0:01:54]}  Nxd6 {[%clk 0:01:24]} 24. Ba3 {[%clk 0:01:50]}  Bb5 {[%clk 0:01:16]} 25. Qc2 {[%clk 0:01:46]}  f5 {[%clk 0:01:11]} 26. Rf3 {[%clk 0:01:41]}  Re8 {[%clk 0:01:07]} 27. Qc3 {[%clk 0:01:27]}  Ne4 {[%clk 0:01:02]} 28. Bxe4 {[%clk 0:01:26]}  dxe4 {[%clk 0:01:00]} 29. Rg3 {[%clk 0:01:22]}  Nd5 {[%clk 0:01:00]} 30. Qc1 {[%clk 0:01:14]}  Qc7 {[%clk 0:00:49]} 31. Qxc7 {[%clk 0:01:03]}  Nxc7 {[%clk 0:00:50]} 32. Nc4 {[%clk 0:00:59]}  Bxc4 {[%clk 0:00:42]} 33. bxc4 {[%clk 0:00:59]}  Rd8 {[%clk 0:00:39]} 34. Bc5 {[%clk 0:00:54]}  b5 {[%clk 0:00:37]} 35. cxb5 {[%clk 0:00:49]}  Nxb5 {[%clk 0:00:35]} 36. Rb3 {[%clk 0:00:41]}  Nxd4 {[%clk 0:00:33]} 37. Rb7 {[%clk 0:00:39]}  Ne2+ {[%clk 0:00:31]} 38. Kf2 {[%clk 0:00:39]}  Nxf4 {[%clk 0:00:31]} 39. Ba3 {[%clk 0:00:27]}  Nd5 {[%clk 0:00:24]} 40. Bb2 {[%clk 0:00:24]}  Nf6 {[%clk 0:00:24]} 41. Rb6 {[%clk 0:00:22]}  Kf7 {[%clk 0:00:19]} 42. Ke2 {[%clk 0:00:21]}  Rc8 {[%clk 0:00:17]} 43. Kd2 {[%clk 0:00:18]}  f4 {[%clk 0:00:17]} 44. Rxa6 {[%clk 0:00:18]}  e3+ {[%clk 0:00:16]} 45. Kd1 {[%clk 0:00:16]}  e2+ {[%clk 0:00:14]} 46. Kxe2 {[%clk 0:00:14]}  Rc2+ {[%clk 0:00:13]} 47. Kf3 {[%clk 0:00:14]}  Rxb2 {[%clk 0:00:14]} 48. Kxf4 {[%clk 0:00:13]}  Rxg2 {[%clk 0:00:13]} 49. a4 {[%clk 0:00:13]}  Rxh2 {[%clk 0:00:13]} 50. a5 {[%clk 0:00:13]}  Ra2 {[%clk 0:00:13]} 51. Ra8 {[%clk 0:00:12]}  h5 {[%clk 0:00:10]} 52. a6 {[%clk 0:00:11]}  h4 {[%clk 0:00:10]} 53. Ke5 {[%clk 0:00:11]}  h3 {[%clk 0:00:09]} 54. a7 {[%clk 0:00:11]}  h2 {[%clk 0:00:09]} 0-1


[Site "https://www.chess.com"]

[Event "Titled Tuesday Blitz May 03 Late 2022"]
[White "Issani, Nameer"]
[Black "Rasulov, Vugar"]
[WhiteFideId "2619130"]
[BlackFideId "13402390"]
[WhiteElo "2709"]
[BlackElo "2560"]
[Result "0-1"]
[Round "03"]
[TimeControl "180+1"]
[Date "2022.05.03"]
[WhiteClock "0:01:01"]
[BlackClock "0:01:22"]

1. d4 {[%clk 0:02:59]}  d5 {[%clk 0:03:00]} 2. c4 {[%clk 0:03:00]}  c6 {[%clk 0:03:00]} 3. Nf3 {[%clk 0:03:00]}  Nf6 {[%clk 0:03:00]} 4. e3 {[%clk 0:03:00]}  e6 {[%clk 0:03:00]} 5. Nc3 {[%clk 0:03:01]}  Nbd7 {[%clk 0:03:00]} 6. Be2 {[%clk 0:03:02]}  Bd6 {[%clk 0:03:01]} 7. O-O {[%clk 0:03:02]}  O-O {[%clk 0:03:01]} 8. Qc2 {[%clk 0:03:03]}  Re8 {[%clk 0:03:01]} 9. b3 {[%clk 0:03:02]}  Qe7 {[%clk 0:03:02]} 10. Bb2 {[%clk 0:03:03]}  b6 {[%clk 0:03:02]} 11. e4 {[%clk 0:02:59]}  Nxe4 {[%clk 0:03:02]} 12. Nxe4 {[%clk 0:03:00]}  dxe4 {[%clk 0:03:03]} 13. Qxe4 {[%clk 0:03:00]}  Bb7 {[%clk 0:03:04]} 14. Rad1 {[%clk 0:02:53]}  Rad8 {[%clk 0:03:00]} 15. Rfe1 {[%clk 0:02:52]}  Nf6 {[%clk 0:02:58]} 16. Qh4 {[%clk 0:02:46]}  Bb4 {[%clk 0:02:54]} 17. Rf1 {[%clk 0:02:35]}  Ba3 {[%clk 0:02:53]} 18. Ba1 {[%clk 0:02:28]}  c5 {[%clk 0:02:53]} 19. Ne5 {[%clk 0:02:25]}  cxd4 {[%clk 0:02:50]} 20. Rxd4 {[%clk 0:02:23]}  Bc5 {[%clk 0:02:44]} 21. Rxd8 {[%clk 0:02:22]}  Rxd8 {[%clk 0:02:44]} 22. Ng4 {[%clk 0:02:19]}  Ne4 {[%clk 0:02:32]} 23. Qxe7 {[%clk 0:02:10]}  Bxe7 {[%clk 0:02:32]} 24. Bf3 {[%clk 0:02:11]}  f5 {[%clk 0:02:29]} 25. Ne5 {[%clk 0:02:06]}  Rd2 {[%clk 0:02:29]} 26. Rd1 {[%clk 0:02:05]}  Rxa2 {[%clk 0:02:26]} 27. Bd4 {[%clk 0:02:02]}  g5 {[%clk 0:02:17]} 28. h3 {[%clk 0:02:01]}  Bf6 {[%clk 0:02:17]} 29. Nd7 {[%clk 0:01:56]}  Bxd4 {[%clk 0:02:13]} 30. Rxd4 {[%clk 0:01:57]}  Kg7 {[%clk 0:02:09]} 31. Bxe4 {[%clk 0:01:48]}  Bxe4 {[%clk 0:02:10]} 32. f3 {[%clk 0:01:49]}  Ba8 {[%clk 0:02:08]} 33. Ne5 {[%clk 0:01:49]}  Kf6 {[%clk 0:02:08]} 34. Nd7+ {[%clk 0:01:46]}  Ke7 {[%clk 0:02:04]} 35. Ne5 {[%clk 0:01:47]}  h5 {[%clk 0:01:45]} 36. h4 {[%clk 0:01:44]}  g4 {[%clk 0:01:45]} 37. Rd7+ {[%clk 0:01:40]}  Ke8 {[%clk 0:01:39]} 38. Rh7 {[%clk 0:01:37]}  g3 {[%clk 0:01:35]} 39. Kf1 {[%clk 0:01:34]}  Rf2+ {[%clk 0:01:35]} 40. Kg1 {[%clk 0:01:34]}  Re2 {[%clk 0:01:35]} 41. Nd3 {[%clk 0:01:29]}  Re3 {[%clk 0:01:29]} 42. Rh8+ {[%clk 0:01:19]}  Ke7 {[%clk 0:01:30]} 43. Rxa8 {[%clk 0:01:20]}  Rxd3 {[%clk 0:01:30]} 44. Kf1 {[%clk 0:01:20]}  a5 {[%clk 0:01:24]} 45. Rh8 {[%clk 0:01:11]}  Rxb3 {[%clk 0:01:23]} 46. Rxh5 {[%clk 0:01:12]}  a4 {[%clk 0:01:23]} 47. Rh7+ {[%clk 0:01:11]}  Kf6 {[%clk 0:01:23]} 48. Ra7 {[%clk 0:01:11]}  a3 {[%clk 0:01:23]} 49. Ke2 {[%clk 0:01:11]}  f4 {[%clk 0:01:22]} 50. Ra6 {[%clk 0:01:05]}  Rb2+ {[%clk 0:01:22]} 51. Kf1 {[%clk 0:01:01]}  a2 {[%clk 0:01:22]} 0-1


[Site "https://www.chess.com"]

[Event "Titled Tuesday Blitz May 03 Late 2022"]
[White "Itkis, Boris"]
[Black "Castillo Pena, Patricia Evarista"]
[WhiteFideId "1209167"]
[BlackFideId "6412106"]
[WhiteElo "2207"]
[BlackElo "1918"]
[Result "1-0"]
[Round "03"]
[TimeControl "180+1"]
[Date "2022.05.03"]
[WhiteClock "0:02:28"]
[BlackClock "0:01:50"]

1. c4 {[%clk 0:02:59]}  c6 {[%clk 0:02:42]} 2. Nc3 {[%clk 0:02:57]}  Nf6 {[%clk 0:02:42]} 3. e3 {[%clk 0:02:56]}  d5 {[%clk 0:02:42]} 4. Nf3 {[%clk 0:02:57]}  e6 {[%clk 0:02:41]} 5. b3 {[%clk 0:02:54]}  Nbd7 {[%clk 0:02:40]} 6. Bb2 {[%clk 0:02:54]}  Bd6 {[%clk 0:02:40]} 7. Qc2 {[%clk 0:02:55]}  O-O {[%clk 0:02:39]} 8. Rg1 {[%clk 0:02:55]}  e5 {[%clk 0:02:36]} 9. cxd5 {[%clk 0:02:54]}  cxd5 {[%clk 0:02:35]} 10. Nb5 {[%clk 0:02:54]}  Bb8 {[%clk 0:02:34]} 11. Rc1 {[%clk 0:02:55]}  a6 {[%clk 0:02:25]} 12. Nc7 {[%clk 0:02:54]}  Ra7 {[%clk 0:02:21]} 13. Ba3 {[%clk 0:02:43]}  Bxc7 {[%clk 0:02:07]} 14. Bxf8 {[%clk 0:02:41]}  b5 {[%clk 0:01:57]} 15. Bc5 {[%clk 0:02:28]}  Nxc5 {[%clk 0:01:54]} 16. Qxc5 {[%clk 0:02:29]}  Bb6 {[%clk 0:01:50]} 17. Qxc8 {[%clk 0:02:28]} 1-0


[Site "https://www.chess.com"]

[Event "Titled Tuesday Blitz May 03 Late 2022"]
[White "Jacobson, Brandon"]
[Black "Abdyzhapar, Asylbek"]
[WhiteFideId "30901561"]
[BlackFideId "13800337"]
[WhiteElo "2362"]
[BlackElo "2331"]
[Result "1-0"]
[Round "03"]
[TimeControl "180+1"]
[Date "2022.05.03"]
[WhiteClock "0:00:08"]
[BlackClock "0:00:13"]

1. d4 {[%clk 0:03:00]}  Nf6 {[%clk 0:02:58]} 2. c4 {[%clk 0:03:01]}  g6 {[%clk 0:02:57]} 3. Nc3 {[%clk 0:03:01]}  Bg7 {[%clk 0:02:57]} 4. e4 {[%clk 0:03:02]}  d6 {[%clk 0:02:57]} 5. Nf3 {[%clk 0:03:03]}  O-O {[%clk 0:02:56]} 6. Be2 {[%clk 0:03:04]}  e5 {[%clk 0:02:56]} 7. O-O {[%clk 0:03:04]}  Nc6 {[%clk 0:02:54]} 8. dxe5 {[%clk 0:03:05]}  dxe5 {[%clk 0:02:51]} 9. Bg5 {[%clk 0:03:05]}  Qxd1 {[%clk 0:02:41]} 10. Rfxd1 {[%clk 0:03:05]}  h6 {[%clk 0:02:41]} 11. Be3 {[%clk 0:02:59]}  Ng4 {[%clk 0:02:38]} 12. Bc5 {[%clk 0:02:58]}  Rd8 {[%clk 0:02:26]} 13. Nd5 {[%clk 0:02:58]}  b6 {[%clk 0:02:07]} 14. Nxc7 {[%clk 0:02:19]}  Rxd1+ {[%clk 0:02:03]} 15. Rxd1 {[%clk 0:02:18]}  Rb8 {[%clk 0:02:03]} 16. Bd6 {[%clk 0:02:18]}  Rb7 {[%clk 0:01:57]} 17. Ne8 {[%clk 0:02:11]}  Bh8 {[%clk 0:01:43]} 18. c5 {[%clk 0:01:56]}  bxc5 {[%clk 0:01:22]} 19. Ba6 {[%clk 0:01:54]}  Rxb2 {[%clk 0:01:20]} 20. Bxc8 {[%clk 0:01:53]}  Nxf2 {[%clk 0:01:19]} 21. Rc1 {[%clk 0:01:28]}  Nxe4 {[%clk 0:01:13]} 22. Bxc5 {[%clk 0:01:25]}  Nxc5 {[%clk 0:01:07]} 23. Rxc5 {[%clk 0:01:25]}  Ne7 {[%clk 0:00:53]} 24. Rc7 {[%clk 0:00:59]}  Nd5 {[%clk 0:00:45]} 25. Rb7 {[%clk 0:00:49]}  Nb6 {[%clk 0:00:42]} 26. Nd6 {[%clk 0:00:26]}  Rb1+ {[%clk 0:00:35]} 27. Kf2 {[%clk 0:00:26]}  Rd1 {[%clk 0:00:35]} 28. Nxf7 {[%clk 0:00:15]}  e4 {[%clk 0:00:31]} 29. Nxh6+ {[%clk 0:00:09]}  Kf8 {[%clk 0:00:29]} 30. Ng5 {[%clk 0:00:09]}  Nxc8 {[%clk 0:00:20]} 31. Rb8 {[%clk 0:00:08]}  Rc1 {[%clk 0:00:15]} 32. Nxe4 {[%clk 0:00:08]}  Be5 {[%clk 0:00:14]} 33. Rb7 {[%clk 0:00:08]}  Bd4+ {[%clk 0:00:13]} 34. Kf3 {[%clk 0:00:08]}  Rf1+ {[%clk 0:00:11]} 35. Ke2 {[%clk 0:00:08]}  Rf4 {[%clk 0:00:10]} 36. Ng5 {[%clk 0:00:09]}  Rf2+ {[%clk 0:00:08]} 37. Kd3 {[%clk 0:00:09]}  Bb6 {[%clk 0:00:08]} 38. Rb8 {[%clk 0:00:09]}  Rxg2 {[%clk 0:00:07]} 39. Rxc8+ {[%clk 0:00:09]}  Ke7 {[%clk 0:00:08]} 40. Nf3 {[%clk 0:00:09]}  Rf2 {[%clk 0:00:08]} 41. Ke4 {[%clk 0:00:07]}  Rxa2 {[%clk 0:00:09]} 42. Rc4 {[%clk 0:00:06]}  Ra4 {[%clk 0:00:10]} 43. Rxa4 {[%clk 0:00:06]}  Kf6 {[%clk 0:00:09]} 44. Ng4+ {[%clk 0:00:06]}  Ke6 {[%clk 0:00:09]} 45. Nge5 {[%clk 0:00:07]}  Kd6 {[%clk 0:00:09]} 46. Nxg6 {[%clk 0:00:07]}  Kc6 {[%clk 0:00:09]} 47. Nge5+ {[%clk 0:00:08]}  Kb5 {[%clk 0:00:10]} 48. Ra1 {[%clk 0:00:08]}  a5 {[%clk 0:00:11]} 49. Rb1+ {[%clk 0:00:09]}  Ka6 {[%clk 0:00:12]} 50. Kd5 {[%clk 0:00:10]}  a4 {[%clk 0:00:13]} 51. Kc6 {[%clk 0:00:10]}  Ba5 {[%clk 0:00:13]} 52. Ra1 {[%clk 0:00:08]} 1-0


[Site "https://www.chess.com"]

[Event "Titled Tuesday Blitz May 03 Late 2022"]
[White "Keymer, Vincent"]
[Black "Omariev, Maksim"]
[WhiteFideId "12940690"]
[BlackFideId "4193423"]
[WhiteElo "2557"]
[BlackElo "2526"]
[Result "1-0"]
[Round "03"]
[TimeControl "180+1"]
[Date "2022.05.03"]
[WhiteClock "0:00:30"]
[BlackClock "0:00:03"]

1. Nf3 {[%clk 0:03:00]}  h5 {[%clk 0:03:00]} 2. c4 {[%clk 0:02:57]}  h4 {[%clk 0:03:01]} 3. Nc3 {[%clk 0:02:57]}  h3 {[%clk 0:03:02]} 4. g3 {[%clk 0:02:52]}  c6 {[%clk 0:03:00]} 5. e4 {[%clk 0:02:50]}  d6 {[%clk 0:02:55]} 6. d4 {[%clk 0:02:50]}  g6 {[%clk 0:02:34]} 7. Be2 {[%clk 0:02:36]}  Bg7 {[%clk 0:02:34]} 8. Bg5 {[%clk 0:02:35]}  Nd7 {[%clk 0:02:22]} 9. O-O {[%clk 0:02:24]}  Nf8 {[%clk 0:02:21]} 10. Re1 {[%clk 0:02:20]}  Bg4 {[%clk 0:01:56]} 11. Be3 {[%clk 0:02:05]}  e5 {[%clk 0:01:43]} 12. d5 {[%clk 0:01:57]}  c5 {[%clk 0:01:40]} 13. b4 {[%clk 0:01:51]}  b6 {[%clk 0:01:40]} 14. bxc5 {[%clk 0:01:43]}  bxc5 {[%clk 0:01:40]} 15. Rb1 {[%clk 0:01:36]}  Bh6 {[%clk 0:01:40]} 16. Nxe5 {[%clk 0:01:17]}  Bxe2 {[%clk 0:01:33]} 17. Qa4+ {[%clk 0:01:16]}  Nd7 {[%clk 0:01:29]} 18. Nxd7 {[%clk 0:01:15]}  Qxd7 {[%clk 0:01:09]} 19. Qxd7+ {[%clk 0:01:08]}  Kxd7 {[%clk 0:01:10]} 20. Rxe2 {[%clk 0:01:08]}  Bxe3 {[%clk 0:01:10]} 21. Rxe3 {[%clk 0:01:08]}  Nh6 {[%clk 0:01:07]} 22. Rb7+ {[%clk 0:01:06]}  Kc8 {[%clk 0:01:06]} 23. Rb3 {[%clk 0:01:06]}  Kd7 {[%clk 0:01:01]} 24. Re2 {[%clk 0:01:01]}  Rab8 {[%clk 0:00:56]} 25. Reb2 {[%clk 0:01:01]}  Rxb3 {[%clk 0:00:29]} 26. Rxb3 {[%clk 0:01:02]}  Ra8 {[%clk 0:00:26]} 27. f3 {[%clk 0:00:59]}  a6 {[%clk 0:00:21]} 28. Kf2 {[%clk 0:00:52]}  Kc7 {[%clk 0:00:19]} 29. g4 {[%clk 0:00:48]}  f6 {[%clk 0:00:16]} 30. Ne2 {[%clk 0:00:44]}  Nf7 {[%clk 0:00:11]} 31. f4 {[%clk 0:00:37]}  g5 {[%clk 0:00:10]} 32. Rxh3 {[%clk 0:00:36]}  Re8 {[%clk 0:00:05]} 33. Rh7 {[%clk 0:00:34]}  Re7 {[%clk 0:00:05]} 34. e5 {[%clk 0:00:30]}  dxe5 {[%clk 0:00:04]} 35. fxg5 {[%clk 0:00:31]}  fxg5 {[%clk 0:00:04]} 36. Ng3 {[%clk 0:00:31]}  Kd8 {[%clk 0:00:03]} 37. Ne4 {[%clk 0:00:30]} 1-0


[Site "https://www.chess.com"]

[Event "Titled Tuesday Blitz May 03 Late 2022"]
[White "Kholin, Aleksandr"]
[Black "Barria Zuniga, Daniel"]
[WhiteFideId "14179385"]
[BlackFideId "3400816"]
[WhiteElo "2461"]
[BlackElo "2414"]
[Result "0-1"]
[Round "03"]
[TimeControl "180+1"]
[Date "2022.05.03"]
[WhiteClock "0:00:13"]
[BlackClock "0:01:44"]

1. d4 {[%clk 0:03:00]}  g6 {[%clk 0:02:53]} 2. c4 {[%clk 0:02:55]}  Bg7 {[%clk 0:02:53]} 3. Nf3 {[%clk 0:02:54]}  c5 {[%clk 0:02:52]} 4. d5 {[%clk 0:02:54]}  e6 {[%clk 0:02:52]} 5. Nc3 {[%clk 0:02:51]}  exd5 {[%clk 0:02:51]} 6. cxd5 {[%clk 0:02:49]}  d6 {[%clk 0:02:52]} 7. g3 {[%clk 0:02:49]}  a6 {[%clk 0:02:50]} 8. a4 {[%clk 0:02:48]}  Nf6 {[%clk 0:02:49]} 9. Bg2 {[%clk 0:02:48]}  O-O {[%clk 0:02:50]} 10. O-O {[%clk 0:02:48]}  Re8 {[%clk 0:02:50]} 11. Nd2 {[%clk 0:02:47]}  Nbd7 {[%clk 0:02:50]} 12. Nc4 {[%clk 0:02:47]}  Ne5 {[%clk 0:02:49]} 13. Na3 {[%clk 0:02:46]}  Bd7 {[%clk 0:02:43]} 14. f4 {[%clk 0:02:32]}  Neg4 {[%clk 0:02:42]} 15. e4 {[%clk 0:02:31]}  Nh5 {[%clk 0:02:37]} 16. Nc2 {[%clk 0:02:17]}  b5 {[%clk 0:02:31]} 17. h3 {[%clk 0:02:06]}  Nxg3 {[%clk 0:02:28]} 18. hxg4 {[%clk 0:02:04]}  Qh4 {[%clk 0:02:16]} 19. g5 {[%clk 0:00:51]}  Bg4 {[%clk 0:02:10]} 20. Bf3 {[%clk 0:00:37]}  Nxf1 {[%clk 0:01:50]} 21. Bxg4 {[%clk 0:00:37]}  Nh2 {[%clk 0:01:49]} 22. Bd7 {[%clk 0:00:17]}  Qg3+ {[%clk 0:01:47]} 23. Kh1 {[%clk 0:00:16]}  Nf3 {[%clk 0:01:45]} 24. Qf1 {[%clk 0:00:13]}  Qh2# {[%clk 0:01:44]} 0-1


[Site "https://www.chess.com"]